fUST/lending_fUST_20241004
["ID","MTS","AMOUNT","RATE_DAILY","PERIOD"]
[339805792,1727991057132,-737.55,0.00013972,2]
[339805793,1727991057144,-1131.53,0.00013972,2]
[339805794,1727991057154,-500.0,0.00013972,2]
[339805795,1727991057164,-500.0,0.00013972,2]
[339805796,1727991057174,-500.0,0.00013972,2]
[339805797,1727991057184,-500.0,0.00013972,2]
[339805798,1727991057193,-578.41,0.00013972,2]
[339805799,1727991057203,-500.0,0.00013972,2]
[339805800,1727991057213,-500.0,0.00013972,2]
[339805801,1727991057223,-500.0,0.00013972,2]
[339805802,1727991057232,-884.53,0.00013972,2]
[339805803,1727991057242,-500.0,0.00013972,2]
[339805804,1727991057253,-500.0,0.00013972,2]
[339805805,1727991057263,-500.0,0.00013972,2]
[339805806,1727991057273,-563.57,0.00013972,2]
[339805807,1727991057284,-500.0,0.00013972,2]
[339805808,1727991057299,-687.45,0.00013972,2]
[339805809,1727991057308,-500.0,0.00013972,2]
[339805810,1727991057317,-671.14,0.00013972,2]
[339805811,1727991057327,-588.96,0.00013972,2]
[339805812,1727991057336,-585.71,0.00013972,2]
[339805813,1727991057346,-537.02,0.00013972,2]
[339805814,1727991057355,-500.0,0.00013972,2]
[339805815,1727991057364,-500.0,0.00013972,2]
[339805816,1727991057373,-500.0,0.00013972,2]
[339805817,1727991057383,-493.0,0.00013973,2]
[339805818,1727991057392,-500.0,0.00013973,2]
[339805819,1727991057401,-500.0,0.00013973,2]
[339805820,1727991057410,-508.87933556,0.00013973,2]
[339805821,1727991057419,-500.0,0.00013973,2]
[339805822,1727991057429,-500.54868513,0.00013973,2]
[339805823,1727991057438,-500.36366789,0.00013973,2]
[339805824,1727991057447,-500.0,0.00013973,2]
[339805825,1727991057456,-500.0,0.00013973,2]
[339805826,1727991057466,-500.0,0.00013973,2]
[339805827,1727991057477,-500.0,0.00013973,2]
[339805828,1727991057487,-500.0,0.00013973,2]
[339805829,1727991057497,-500.0,0.00013973,2]
[339805830,1727991057508,-339.0,0.00013973,2]
[339805831,1727991057518,-500.0,0.00013973,2]
[339805832,1727991057527,-498.11269694,0.00013973,2]
[339805833,1727991057547,-182.54158297,0.00013973,2]
[339805834,1727991057557,-210.08588892,0.00013973,2]
[339805835,1727991057566,-500.0,0.00013973,2]
[339805836,1727991057575,-198.02451719,0.00013973,2]
[339805837,1727991057585,-500.0,0.00013973,2]
[339805838,1727991057598,-190.93114898,0.00013973,2]
[339805839,1727991057608,-502.98971341,0.00013973,2]
[339805840,1727991057617,-556.79355992,0.00013973,2]
[339805841,1727991057626,-500.0,0.00013973,2]
[339805842,1727991057637,-500.0,0.00013973,2]
[339805843,1727991057647,-500.0,0.00013973,2]
[339805844,1727991057657,-500.0,0.00013973,2]
[339805845,1727991057667,-150.0,0.00013973,2]
[339805846,1727991057679,-151.99993879,0.00013973,2]
[339805847,1727991057688,-6976.89432506,0.00014,2]
[339805848,1727991058261,-411.11179919,0.00014,2]
[339805849,1727991058273,-548.53406688,0.00014,2]
[339805850,1727991058285,-613.5885,0.00014,2]
[339805851,1727991058297,-300.78721,0.00014,2]
[339805852,1727991058312,-3821.41430996,0.00014,2]
[339805853,1727991058323,-1173.6576485,0.00014,2]
[339805854,1727991072718,150.0,0.000209,120]
[339805871,1727992037160,-701.3881279,0.00012581,2]
[339805872,1727992037181,-248.075558,0.00012603,2]
[339805873,1727992037203,-169.4256369,0.00012664,2]
[339805874,1727992037224,-168.549575,0.00013428,2]
[339805875,1727992037248,-1963.35461063,0.00013498,2]
[339805876,1727992037269,-518.50617204,0.00013588,2]
[339805877,1727992037291,-518.50617204,0.00013591,2]
[339805878,1727992037312,-401.37743243,0.00013593,2]
[339805880,1727992125742,150.0,0.000209,120]
[339805919,1727992232270,-3271.6682776,0.00012597,2]
[339805920,1727992232280,-117.12873961,0.00013593,2]
[339805921,1727992232290,-518.50617204,0.00013596,2]
[339805922,1727992232299,-300.0,0.00013596,2]
[339805923,1727992232308,-168.549575,0.00013596,2]
[339805924,1727992232317,-899.70344003,0.00013597,2]
[339805925,1727992232327,-300.0,0.00013597,2]
[339805926,1727992232336,-42269.73701,0.00013597,2]
[339805927,1727992232345,-518.50617204,0.00013598,2]
[339805928,1727992232354,-5164.66483678,0.00013598,2]
[339805929,1727992232363,-38639.54782284,0.00013598,2]
[339805930,1727992232372,-1000.0,0.00013598,2]
[339805931,1727992232381,-500.0,0.00013673,2]
[339805932,1727992232390,-500.0,0.00013673,2]
[339805933,1727992232400,-500.0,0.00013673,2]
[339805934,1727992232409,-500.0,0.00013673,2]
[339805935,1727992232418,-500.0,0.00013673,2]
[339805936,1727992232427,-500.0,0.00013673,2]
[339805937,1727992232436,-1494.5726408,0.00013678,2]
[339805938,1727992232446,-5000.0,0.00013688,2]
[339805939,1727992232456,-2391.31622528,0.00013688,2]
[339805940,1727992232465,-500.0,0.00013695,2]
[339805941,1727992232475,-500.0,0.00013698,2]
[339805942,1727992232484,-500.0,0.00013698,2]
[339805943,1727992232494,-500.0,0.00013698,2]
[339805944,1727992232503,-450.66055765,0.00013698,2]
[339805945,1727992232513,-500.0,0.00013698,2]
[339805946,1727992232522,-500.0,0.00013698,2]
[339805947,1727992232531,-377.98564147,0.00013698,2]
[339805948,1727992232542,-198.30236942,0.00013698,2]
[339805949,1727992232552,-500.0,0.00013698,2]
[339805950,1727992232561,-500.0,0.00013698,2]
[339805951,1727992232570,-462.62470302,0.00013698,2]
[339805952,1727992232579,-500.0,0.00013698,2]
[339805953,1727992232588,-500.0,0.00013698,2]
[339805954,1727992232598,-500.0,0.00013698,2]
[339805955,1727992232607,-500.0,0.00013698,2]
[339805956,1727992232616,-500.0,0.00013698,2]
[339805957,1727992232626,-500.0,0.00013698,2]
[339805958,1727992232635,-500.0,0.00013698,2]
[339805959,1727992232644,-500.0,0.00013698,2]
[339805960,1727992232654,-270.52165707,0.00013698,2]
[339805961,1727992232664,-500.0,0.00013698,2]
[339805962,1727992232673,-500.0,0.00013698,2]
[339805963,1727992232682,-509.83673772,0.00013698,2]
[339805964,1727992232691,-500.0,0.00013698,2]
[339805965,1727992232701,-400.0,0.00013698,2]
[339805966,1727992232710,-500.0,0.00013698,2]
[339805967,1727992232720,-586.89498287,0.00013698,2]
[339805968,1727992232729,-500.75886572,0.00013698,2]
[339805969,1727992232738,-500.0,0.00013698,2]
[339805970,1727992232748,-500.0,0.00013698,2]
[339805971,1727992232757,-500.0,0.00013698,2]
[339805972,1727992232766,-500.0,0.00013698,2]
[339805973,1727992232775,-500.0,0.00013698,2]
[339805974,1727992232784,-751.69,0.00013698,2]
[339805975,1727992232794,-500.0,0.00013698,2]
[339805976,1727992232804,-500.0,0.00013698,2]
[339805977,1727992232813,-500.0,0.00013698,2]
[339805978,1727992232823,-522.45,0.00013698,2]
[339805979,1727992232832,-534.43728534,0.00013698,2]
[339805980,1727992232842,-500.0,0.00013698,2]
[339805981,1727992232852,-500.0,0.00013698,2]
[339805982,1727992232861,-500.0,0.00013698,2]
[339805983,1727992232870,-500.0,0.00013698,2]
[339805984,1727992232880,-500.36659977,0.00013698,2]
[339805985,1727992232889,-500.0,0.00013698,2]
[339805986,1727992232899,-500.0,0.00013698,2]
[339805987,1727992232908,-500.0,0.00013698,2]
[339805988,1727992232917,-548.18,0.00013698,2]
[339805989,1727992232926,-500.0,0.00013698,2]
[339805990,1727992232935,-500.0,0.00013698,2]
[339805991,1727992232945,-500.0,0.00013698,2]
[339805992,1727992232954,-705.08,0.00013698,2]
[339805993,1727992232964,-500.0,0.00013698,2]
[339805994,1727992232973,-500.0,0.00013698,2]
[339805995,1727992232982,-572.29,0.00013698,2]
[339805996,1727992232991,-571.75,0.00013698,2]
[339805997,1727992233001,-500.0,0.00013698,2]
[339805998,1727992233011,-500.0,0.00013698,2]
[339805999,1727992233020,-500.0,0.00013698,2]
[339806000,1727992233030,-500.0,0.00013698,2]
[339806001,1727992233042,-500.0,0.00013698,2]
[339806002,1727992233052,-500.0,0.00013698,2]
[339806003,1727992233061,-500.0,0.00013698,2]
[339806004,1727992233071,-500.0,0.00013698,2]
[339806005,1727992233082,-500.0,0.00013698,2]
[339806006,1727992233093,-500.0,0.00013698,2]
[339806007,1727992233102,-500.0,0.00013698,2]
[339806008,1727992233114,-633.77774933,0.00013698,2]
[339806009,1727992233123,-500.0,0.00013698,2]
[339806010,1727992233133,-500.0,0.00013698,2]
[339806011,1727992233143,-500.0,0.00013698,2]
[339806012,1727992233153,-500.0,0.00013698,2]
[339806013,1727992233162,-500.0,0.00013698,2]
[339806014,1727992233172,-600.20134174,0.00013698,2]
[339806015,1727992233182,-500.0,0.00013698,2]
[339806016,1727992233191,-500.0,0.00013698,2]
[339806017,1727992233202,-500.0,0.00013698,2]
[339806018,1727992233211,-500.0,0.00013698,2]
[339806019,1727992233221,-500.0,0.00013698,2]
[339806020,1727992233231,-544.1,0.00013698,2]
[339806021,1727992233241,-641.17512835,0.00013698,2]
[339806022,1727992233250,-500.0,0.00013698,2]
[339806023,1727992233261,-668.69,0.00013698,2]
[339806024,1727992233271,-570.63,0.00013698,2]
[339806025,1727992233281,-500.0,0.00013698,2]
[339806026,1727992233291,-500.0,0.00013698,2]
[339806027,1727992233301,-557.58281222,0.00013698,2]
[339806028,1727992233311,-500.0,0.00013698,2]
[339806029,1727992233322,-575.36,0.00013698,2]
[339806030,1727992233333,-500.0,0.00013698,2]
[339806031,1727992233344,-500.0,0.00013698,2]
[339806032,1727992233354,-515.89,0.00013698,2]
[339806033,1727992233363,-158.34978277,0.00013698,2]
[339806034,1727992233372,-500.0,0.00013698,2]
[339806035,1727992233382,-466.35544551,0.00013698,2]
[339806036,1727992233391,-500.0,0.00013698,2]
[339806037,1727992233401,-500.0,0.00013698,2]
[339806038,1727992233411,-500.0,0.00013698,2]
[339806039,1727992233421,-500.0,0.00013698,2]
[339806040,1727992233430,-365.29681978,0.00013698,2]
[339806041,1727992233440,-500.0,0.00013698,2]
[339806042,1727992233449,-500.0,0.00013698,2]
[339806043,1727992233459,-500.0,0.00013698,2]
[339806044,1727992233468,-500.0,0.00013698,2]
[339806045,1727992233479,-500.0,0.00013698,2]
[339806046,1727992233488,-500.0,0.00013698,2]
[339806047,1727992233499,-500.0,0.00013698,2]
[339806048,1727992233510,-500.0,0.00013698,2]
[339806049,1727992233521,-500.0,0.00013698,2]
[339806050,1727992233531,-500.0,0.00013698,2]
[339806051,1727992233541,-500.0,0.00013698,2]
[339806052,1727992233553,-500.0,0.00013698,2]
[339806053,1727992233563,-500.0,0.00013698,2]
[339806054,1727992233573,-500.0,0.00013698,2]
[339806055,1727992233583,-500.0,0.00013698,2]
[339806056,1727992233592,-500.0,0.00013698,2]
[339806057,1727992233601,-500.0,0.00013698,2]
[339806058,1727992233611,-500.0,0.00013698,2]
[339806059,1727992233621,-505.76,0.00013698,2]
[339806060,1727992233630,-632.06,0.00013698,2]
[339806061,1727992233640,-500.0,0.00013698,2]
[339806062,1727992233649,-1092.76,0.00013698,2]
[339806063,1727992233659,-500.0,0.00013698,2]
[339806064,1727992233669,-500.0,0.00013698,2]
[339806065,1727992233678,-500.0,0.00013698,2]
[339806066,1727992233687,-500.0,0.00013698,2]
[339806067,1727992233697,-500.0,0.00013698,2]
[339806068,1727992233706,-500.0,0.00013698,2]
[339806069,1727992233716,-500.0,0.00013698,2]
[339806070,1727992233726,-576.51,0.00013698,2]
[339806071,1727992233735,-500.0,0.00013698,2]
[339806072,1727992233745,-282.86721534,0.00013698,2]
[339806073,1727992233955,-276.75764162,0.00013698,2]
[339806074,1727992233965,-591.74,0.00013698,2]
[339806075,1727992233975,-500.0,0.00013698,5]
[339806076,1727992233985,-547.18,0.00013698,2]
[339806077,1727992233994,-500.0,0.00013698,2]
[339806078,1727992234004,-500.0,0.00013698,2]
[339806079,1727992234014,-500.0,0.00013698,2]
[339806080,1727992234023,-500.0,0.00013698,2]
[339806081,1727992234035,-500.0,0.00013698,2]
[339806082,1727992234045,-500.0,0.00013698,2]
[339806083,1727992234054,-527.75,0.00013698,2]
[339806084,1727992234064,-500.0,0.00013698,2]
[339806085,1727992234074,-500.0,0.00013698,2]
[339806086,1727992234084,-527.94478923,0.00013698,2]
[339806087,1727992234093,-500.0,0.00013698,2]
[339806088,1727992234103,-507.89,0.00013698,2]
[339806089,1727992234112,-500.0,0.00013698,2]
[339806090,1727992234123,-500.0,0.00013698,2]
[339806091,1727992234134,-500.0,0.00013698,2]
[339806092,1727992234144,-524.68,0.00013698,2]
[339806093,1727992234153,-500.0,0.00013698,2]
[339806094,1727992234162,-580.84,0.00013698,2]
[339806095,1727992234171,-500.0,0.00013698,2]
[339806096,1727992234181,-500.0,0.00013698,2]
[339806097,1727992234191,-500.0,0.00013698,2]
[339806098,1727992234200,-500.0,0.00013698,2]
[339806099,1727992234211,-500.0,0.00013698,2]
[339806100,1727992234221,-965.83,0.00013698,2]
[339806101,1727992234231,-615.22,0.00013698,2]
[339806102,1727992234242,-501.9,0.00013698,2]
[339806103,1727992234252,-500.0,0.00013698,2]
[339806104,1727992234261,-500.0,0.00013698,2]
[339806105,1727992234271,-500.0,0.00013698,2]
[339806106,1727992234280,-500.0,0.00013698,2]
[339806107,1727992234290,-500.0,0.00013698,2]
[339806108,1727992234299,-500.0,0.00013698,2]
[339806109,1727992234309,-500.0,0.00013698,2]
[339806110,1727992234319,-500.0,0.00013698,2]
[339806111,1727992234329,-747.52,0.00013698,2]
[339806112,1727992234338,-500.0,0.00013698,2]
[339806113,1727992234347,-500.0,0.00013698,2]
[339806114,1727992234356,-1803.09,0.00013698,7]
[339806115,1727992234367,-500.0,0.00013698,2]
[339806116,1727992234376,-500.0,0.00013698,2]
[339806117,1727992234385,-511.61882318,0.00013698,2]
[339806118,1727992234395,-500.0,0.00013698,2]
[339806119,1727992234404,-557.29,0.00013698,2]
[339806120,1727992234414,-540.46793923,0.00013698,2]
[339806121,1727992234424,-500.0,0.00013698,2]
[339806122,1727992234433,-500.0,0.00013698,2]
[339806123,1727992234443,-500.0,0.00013698,2]
[339806124,1727992234454,-500.0,0.00013698,2]
[339806125,1727992234463,-500.0,0.00013698,2]
[339806126,1727992234472,-500.0,0.00013698,2]
[339806127,1727992234482,-500.0,0.00013698,2]
[339806128,1727992234491,-500.0,0.00013698,2]
[339806129,1727992234501,-500.0,0.00013698,2]
[339806130,1727992234511,-500.0,0.00013698,2]
[339806131,1727992234521,-500.0,0.00013698,2]
[339806132,1727992234530,-500.0,0.00013698,2]
[339806133,1727992234539,-500.0,0.00013698,2]
[339806134,1727992234549,-500.0,0.00013698,2]
[339806135,1727992234558,-573.69,0.00013698,2]
[339806136,1727992234567,-500.0,0.00013698,2]
[339806137,1727992234577,-500.0,0.00013698,2]
[339806138,1727992234586,-500.0,0.00013698,2]
[339806139,1727992234595,-500.0,0.00013698,2]
[339806140,1727992234605,-500.0,0.00013698,2]
[339806141,1727992234614,-964.27,0.00013698,2]
[339806142,1727992234623,-672.03,0.00013698,2]
[339806143,1727992234632,-500.0,0.00013698,2]
[339806144,1727992234641,-500.0,0.00013698,2]
[339806145,1727992234651,-500.0,0.00013698,2]
[339806146,1727992234660,-329.01169591,0.00013698,2]
[339806147,1727992234669,-574.83,0.00013698,2]
[339806148,1727992234678,-500.0,0.00013698,2]
[339806149,1727992234687,-500.0,0.00013698,2]
[339806150,1727992234696,-500.0,0.00013698,2]
[339806151,1727992234705,-539.01654651,0.00013698,2]
[339806152,1727992234714,-500.0,0.00013698,2]
[339806153,1727992234723,-500.0,0.00013698,2]
[339806154,1727992234733,-500.0,0.00013698,2]
[339806155,1727992234742,-500.0,0.00013698,2]
[339806156,1727992234751,-826.28,0.00013698,2]
[339806157,1727992234761,-500.0,0.00013698,2]
[339806158,1727992234770,-926.9,0.00013698,2]
[339806159,1727992234779,-500.72,0.00013698,2]
[339806160,1727992234788,-545.88,0.00013698,2]
[339806161,1727992234797,-500.0,0.00013698,2]
[339806162,1727992234806,-500.0,0.00013698,2]
[339806163,1727992234815,-552.38,0.00013698,2]
[339806164,1727992234824,-500.0,0.00013698,2]
[339806165,1727992234834,-500.0,0.00013698,2]
[339806166,1727992234846,-500.0,0.00013698,2]
[339806167,1727992234856,-682.25,0.00013698,2]
[339806168,1727992234865,-500.0,0.00013698,2]
[339806169,1727992234874,-500.0,0.00013698,2]
[339806170,1727992234883,-500.0,0.00013698,2]
[339806171,1727992234892,-500.0,0.00013698,2]
[339806172,1727992234902,-578.96,0.00013698,2]
[339806173,1727992234911,-500.0,0.00013698,2]
[339806174,1727992234920,-500.91953704,0.00013698,2]
[339806175,1727992234929,-500.0,0.00013698,2]
[339806176,1727992234938,-500.0,0.00013698,2]
[339806177,1727992234947,-500.0,0.00013698,2]
[339806178,1727992234958,-500.0,0.00013698,2]
[339806179,1727992234968,-631.03137144,0.00013698,2]
[339806180,1727992234979,-546.13,0.00013698,2]
[339806181,1727992234991,-593.82,0.00013698,2]
[339806182,1727992235001,-504.13853399,0.00013698,2]
[339806183,1727992235011,-500.0,0.00013698,2]
[339806184,1727992235021,-500.0,0.00013698,2]
[339806185,1727992235032,-500.0,0.00013698,2]
[339806186,1727992235042,-434.4767841,0.00013698,2]
[339806187,1727992235052,-501.5227972,0.00013698,2]
[339806188,1727992235061,-500.0,0.00013698,2]
[339806189,1727992235070,-500.0,0.00013698,2]
[339806190,1727992235081,-650.32,0.00013698,2]
[339806191,1727992235090,-515.42377405,0.00013698,2]
[339806192,1727992235099,-589.73,0.00013698,2]
[339806193,1727992235110,-500.0,0.00013698,2]
[339806194,1727992235119,-500.0,0.00013698,2]
[339806195,1727992235129,-581.21,0.00013698,2]
[339806196,1727992235138,-500.0,0.00013698,2]
[339806197,1727992235150,-500.0,0.00013698,2]
[339806198,1727992235161,-500.0,0.00013698,2]
[339806199,1727992235172,-500.0,0.00013698,2]
[339806200,1727992235183,-612.45,0.00013698,2]
[339806201,1727992235194,-642.78,0.00013698,2]
[339806202,1727992235204,-500.0,0.00013698,2]
[339806203,1727992235214,-500.0,0.00013698,2]
[339806204,1727992235226,-501.21667364,0.00013698,2]
[339806205,1727992235237,-500.0,0.00013698,2]
[339806206,1727992235250,-523.58,0.00013698,2]
[339806207,1727992235260,-500.0,0.00013698,2]
[339806208,1727992235271,-500.0,0.00013698,2]
[339806209,1727992235280,-500.0,0.00013698,2]
[339806210,1727992235289,-522.17,0.00013698,2]
[339806211,1727992235299,-500.0,0.00013698,2]
[339806212,1727992235308,-500.0,0.00013698,2]
[339806213,1727992235318,-500.0,0.00013698,2]
[339806214,1727992235329,-500.0,0.00013698,2]
[339806215,1727992235338,-674.66,0.00013698,2]
[339806216,1727992235348,-500.0,0.00013698,2]
[339806217,1727992235357,-500.0,0.00013698,2]
[339806218,1727992235367,-500.0,0.00013698,2]
[339806219,1727992235376,-1675.5,0.00013698,2]
[339806220,1727992235386,-603.74,0.00013698,2]
[339806221,1727992235395,-1030.26,0.00013698,2]
[339806222,1727992235405,-500.0,0.00013698,2]
[339806223,1727992235414,-500.0,0.00013698,2]
[339806224,1727992235424,-500.0,0.00013698,2]
[339806225,1727992235433,-500.0,0.00013698,2]
[339806226,1727992235444,-500.0,0.00013698,2]
[339806227,1727992235454,-635.98798192,0.00013698,2]
[339806228,1727992235463,-500.0,0.00013698,2]
[339806229,1727992235473,-707.18,0.00013698,2]
[339806230,1727992235483,-634.66,0.00013698,2]
[339806231,1727992235492,-500.0,0.00013698,2]
[339806232,1727992235502,-500.0,0.00013698,2]
[339806233,1727992235512,-500.0,0.00013698,2]
[339806234,1727992235522,-565.41,0.00013698,2]
[339806235,1727992235533,-500.0,0.00013698,2]
[339806236,1727992235544,-577.53,0.00013698,2]
[339806237,1727992235555,-501.16025032,0.00013698,2]
[339806238,1727992235566,-506.5,0.00013698,2]
[339806239,1727992235575,-500.0,0.00013698,2]
[339806240,1727992235586,-551.67,0.00013698,2]
[339806241,1727992235597,-686.96,0.00013698,2]
[339806242,1727992235608,-500.0,0.00013698,2]
[339806243,1727992235618,-500.0,0.00013698,2]
[339806244,1727992235628,-500.0,0.00013698,2]
[339806245,1727992235640,-500.0,0.00013698,2]
[339806246,1727992235651,-500.0,0.00013698,2]
[339806247,1727992235663,-500.0,0.00013698,2]
[339806248,1727992235673,-209.09086508,0.00013698,2]
[339806249,1727992235681,-500.0,0.00013698,2]
[339806250,1727992235690,-500.0,0.00013698,2]
[339806251,1727992235699,-500.0,0.00013698,2]
[339806252,1727992235709,-500.0,0.00013698,2]
[339806253,1727992235718,-500.0,0.00013698,2]
[339806254,1727992235727,-500.0,0.00013698,2]
[339806255,1727992235736,-500.0,0.00013698,2]
[339806256,1727992235745,-523.74,0.00013698,2]
[339806257,1727992235757,-500.0,0.00013698,2]
[339806258,1727992235767,-500.0,0.00013698,2]
[339806259,1727992235776,-678.2,0.00013698,2]
[339806260,1727992235786,-500.0,0.00013698,2]
[339806261,1727992235796,-536.9,0.00013698,2]
[339806262,1727992235806,-500.0,0.00013698,2]
[339806263,1727992235815,-518.90226377,0.00013698,2]
[339806264,1727992235826,-500.0,0.00013698,2]
[339806265,1727992235837,-500.0,0.00013698,2]
[339806266,1727992235848,-665.23,0.00013698,2]
[339806267,1727992235858,-500.0,0.00013698,2]
[339806268,1727992235867,-500.0,0.00013698,2]
[339806269,1727992235876,-577.18,0.00013698,2]
[339806270,1727992235885,-589.62,0.00013698,2]
[339806271,1727992235895,-500.0,0.00013698,2]
[339806272,1727992235904,-610.23,0.00013698,2]
[339806273,1727992235913,-500.0,0.00013698,2]
[339806274,1727992235924,-500.0,0.00013698,2]
[339806275,1727992235935,-500.0,0.00013698,2]
[339806276,1727992235945,-524.24,0.00013698,2]
[339806277,1727992235955,-500.0,0.00013698,2]
[339806278,1727992235967,-709.93,0.00013698,2]
[339806279,1727992235978,-500.0,0.00013698,2]
[339806280,1727992235988,-655.53,0.00013698,2]
[339806281,1727992235997,-613.85,0.00013698,2]
[339806282,1727992236006,-305.40973619,0.00013698,2]
[339806283,1727992236016,-500.0,0.00013698,2]
[339806284,1727992236025,-500.0,0.00013698,2]
[339806285,1727992236036,-500.0,0.00013698,2]
[339806286,1727992236045,-500.0,0.00013698,2]
[339806287,1727992236054,-500.0,0.00013698,2]
[339806288,1727992236063,-500.0,0.00013698,2]
[339806289,1727992236072,-500.0,0.00013698,2]
[339806290,1727992236081,-500.0,0.00013698,2]
[339806291,1727992236090,-500.0,0.00013698,2]
[339806292,1727992236099,-500.0,0.00013698,2]
[339806293,1727992236110,-500.0,0.00013698,2]
[339806294,1727992236119,-500.26,0.00013698,2]
[339806295,1727992236130,-500.0,0.00013698,2]
[339806296,1727992236140,-721.39,0.00013698,2]
[339806297,1727992236150,-500.0,0.00013698,2]
[339806298,1727992236161,-500.0,0.00013698,2]
[339806299,1727992236172,-500.0,0.00013698,2]
[339806300,1727992236182,-524.22,0.00013698,2]
[339806301,1727992236191,-500.0,0.00013698,2]
[339806302,1727992236201,-500.0,0.00013698,2]
[339806303,1727992236210,-704.31,0.00013698,2]
[339806304,1727992236219,-656.63,0.00013698,2]
[339806305,1727992236228,-500.0,0.00013698,2]
[339806306,1727992236237,-500.07731565,0.00013698,2]
[339806307,1727992236246,-500.0,0.00013698,2]
[339806308,1727992236255,-500.0,0.00013698,2]
[339806309,1727992236265,-500.0,0.00013698,2]
[339806310,1727992236274,-500.16006235,0.00013698,2]
[339806311,1727992236284,-775.66,0.00013698,2]
[339806312,1727992236293,-500.0,0.00013698,2]
[339806313,1727992236302,-1110.32,0.00013698,2]
[339806314,1727992236311,-500.0,0.00013698,2]
[339806315,1727992236321,-502.61,0.00013698,2]
[339806316,1727992236331,-500.0,0.00013698,2]
[339806317,1727992236340,-500.0,0.00013698,2]
[339806318,1727992236349,-500.0,0.00013698,2]
[339806319,1727992236358,-500.0,0.00013698,2]
[339806320,1727992236367,-500.0,0.00013698,2]
[339806321,1727992236376,-546.54,0.00013698,2]
[339806322,1727992236385,-500.0,0.00013698,2]
[339806323,1727992236394,-149.27230588,0.00013698,2]
[339806324,1727992236420,-350.72769412,0.00013698,2]
[339806325,1727992236429,-934.21,0.00013698,2]
[339806326,1727992236438,-500.0,0.00013698,2]
[339806327,1727992236447,-500.0,0.00013698,2]
[339806328,1727992236456,-500.91033364,0.00013698,2]
[339806329,1727992236465,-500.0,0.00013698,2]
[339806330,1727992236474,-500.0,0.00013698,2]
[339806331,1727992236484,-647.71,0.00013698,2]
[339806332,1727992236493,-500.0,0.00013698,2]
[339806333,1727992236502,-604.76614755,0.00013698,2]
[339806334,1727992236512,-630.16,0.00013698,2]
[339806335,1727992236521,-1930.22,0.00013698,2]
[339806336,1727992236530,-500.0,0.00013698,2]
[339806337,1727992236539,-500.0,0.00013698,2]
[339806338,1727992236549,-500.0,0.00013698,2]
[339806339,1727992236559,-500.0,0.00013698,2]
[339806340,1727992236568,-500.0,0.00013698,2]
[339806341,1727992236577,-502.32,0.00013698,2]
[339806342,1727992236586,-500.0,0.00013698,2]
[339806343,1727992236595,-500.0,0.00013698,2]
[339806344,1727992236604,-983.49,0.00013698,2]
[339806345,1727992236613,-500.19134765,0.00013698,2]
[339806346,1727992236623,-500.0,0.00013698,2]